Cogmind - Beta 10.2 @@@ ROGUE MODE // 2021.04.04 @ 10:47:05 Player: thingamajigger Result: Self-destructed Performance ------------- Evolutions (2) 1000 Regions Visited (5) 1000 Robots Destroyed (13) 65 Value Destroyed (307) 307 Prototype IDs (25) 500 Alien Tech Used (0) 0 Bonus (288) 288 TOTAL SCORE: 3160 Bonus ------- Aligned with FarCom 300 Friendly Fire -12 Cogmind --------- Core Integrity 502/550 Matter 12/450 Energy 37/100 System Corruption 0% Temperature Cool (0) Movement Walking (240) Ox4 Location -8/Materials Parts ------- > --- POWER (1) -------- (None) > --- PROPULSION (2) --- Aluminum Leg Aluminum Leg > --- UTILITY (6) ------ Humpback Large Matter Pod Advanced Sensor Array Recoil Stabilizer Light Armor Plating > --- WEAPON (2) ------- Electrolaser EM Pulse Cannon > --- INVENTORY (24) --- Improved Signal Interpreter Heavy Particle Cannon Assault Rifle Assault Cannon Flak Cannon Grenade Launcher Mining Claw Explosive Trap Explosive Trap Explosive Trap Peak State ------------ > --- POWER ------------ Light Ion Engine > --- PROPULSION ------- Aluminum Leg Aluminum Leg > --- UTILITY ---------- Humpback Large Matter Pod Advanced Sensor Array Recoil Stabilizer Light Armor Plating > --- WEAPON ----------- Assault Cannon Flak Cannon > --- INVENTORY -------- EM Pulse Cannon Assault Rifle Grenade Launcher Mining Claw Explosive Trap Explosive Trap Explosive Trap [Rating: 20] Favorites ----------- Power Light Ion Engine Engine Light Ion Engine Propulsion Aluminum Leg Treads Light Treads Leg Aluminum Leg Utility Advanced Sensor Array Device Advanced Sensor Array Storage Large Storage Unit Processor Modified TNC Protection Light Armor Plating Weapon Grenade Launcher Energy Gun Small Laser Energy Cannon EM Pulse Cannon Ballistic Gun Assault Rifle Ballistic Cannon Assault Cannon Launcher Grenade Launcher Build | -11 -10 -10 -10 -9 -8 ------- Run | Scr Mat Min Exi Min Mat Slots Evolved 4 | . . . . . 4 Power . | . . . . . . Propulsion . | . . . . . . Utility 4 | . . . . . 4 Weapon . | . . . . . . Parts Attached 26 | 6 4 4 3 1 8 Power 2 | 1 . 1 . . . Engine 2 | 1 . 1 . . . Core . | . . . . . . Reactor . | . . . . . . Propulsion 4 | 2 . 2 . . . Treads 2 | 2 . . . . . Leg 2 | . . 2 . . . Wheel . | . . . . . . Hover . | . . . . . . Flight . | . . . . . . Utility 12 | 1 3 1 2 . 5 Device 3 | . . 1 . . 2 Storage 6 | 1 2 . 1 . 2 Processor 1 | . . . 1 . . Hackware . | . . . . . . Protection 2 | . 1 . . . 1 Artifact . | . . . . . . Weapon 8 | 2 1 . 1 1 3 Energy Gun 3 | 2 . . . . 1 Energy Cannon 1 | . . . . . 1 Ballistic Gun 1 | . . . . 1 . Ballistic Cannon 2 | . . . 1 . 1 Launcher 1 | . 1 . . . . Special Weapon . | . . . . . . Impact Weapon . | . . . . . . Slashing Weapon . | . . . . . . Piercing Weapon . | . . . . . . Special Melee Weapon . | . . . . . . Unidentified Prototypes 1 | . . . 1 . . Parts Lost 7 | . 4 1 . 1 1 Power 2 | . . 1 . . 1 Propulsion 2 | . 2 . . . . Utility 1 | . . . . 1 . Weapon 2 | . 2 . . . . Highest Loss Streak 3 | . 3 1 . 1 1 Average Slot Usage (%) 82 | . 71 77 85 85 89 Engine 11 | . 14 9 14 14 8 Treads 4 | . 21 . . . . Leg 19 | . . 27 28 28 18 Device 8 | . . 11 4 . 18 Storage 15 | . 14 14 14 14 17 Processor 2 | . . . 9 . . Protection 3 | . 1 . . . 9 Energy Gun 3 | . 15 . . . . Ballistic Gun 1 | . . . . 14 1 Ballistic Cannon 6 | . . . . 14 15 Launcher 6 | . 4 14 14 . . Naked Turns . | . . . . . . Heaviest Build 102 | 11 28 24 43 42 102 Greatest Support 40 | 40 40 20 20 20 20 Greatest Overweight (x) 7 | 3 7 7 2 2 5 Average Overweight (x) 1 | . . . 1 2 4 Largest Inventory Capacity 32 | 6 12 10 12 12 32 Average Capacity 14 | 5 7 10 10 12 24 Most Carried 12 | 2 5 9 12 10 10 Average Carried 6 | . 3 5 9 10 7 Final Capacity 24 | 6 10 10 12 12 24 Final Carried 10 | 2 5 9 10 10 10 Class Distribution -------------------- 67% | Mutant 32% | Hauler-Skirmisher Dominant Class ---------------- Mutant | -10/Materials Mutant | -10/Mines Mutant | -10/Exiles Mutant | -9/Mines Hauler-Skirmisher | -8/Materials Resources | -11 -10 -10 -10 -9 -8 ----------- Run | Scr Mat Min Exi Min Mat Matter Collected 402 | 207 . 108 . 76 11 Remotely . | . . . . . . Salvage Created 339 | . 131 107 . 85 16 Parts 24 | . 5 8 . 7 4 Haulers Intercepted 1 | . 1 . . . . Recyclers Shooed 1 | . . 1 . . . Parts Field Recycled . | . . . . . . Retrieved Matter . | . . . . . . Parts Self-Destructed . | . . . . . . Prevented . | . . . . . . Kills | -11 -10 -10 -10 -9 -8 ------- Run | Scr Mat Min Exi Min Mat Combat Hostiles Destroyed 6 | . . 2 . 3 1 Cannons 2 | . . . . 1 1 AOE 4 | . . 2 . 2 . Classes Destroyed 9 | . 4 3 . 1 1 Worker 1 | . . 1 . . . Builder 1 | . 1 . . . . Tunneler 1 | . . 1 . . . Hauler 1 | . 1 . . . . Recycler 1 | . 1 . . . . Watcher 2 | . 1 . . . 1 Swarmer 1 | . . . . . 1 Grunt 4 | . . 2 . 2 . Brawler 1 | . . . . 1 . Best Kill Streak 3 | . 3 2 . 3 1 Combat Bots Only 3 | . . 2 . 3 1 Max Kills in Single Turn 2 | . 2 2 . 1 1 Gunslinging . | . . . . . . Exploded 2 | . . 2 . 1 . Melee . | . . . . . . Uniques/NPCs Destroyed . | . . . . . . Combat | -11 -10 -10 -10 -9 -8 -------- Run | Scr Mat Min Exi Min Mat Damage Taken 992 | . 560 89 . 86 257 Core 132 | . 84 . . . 48 Absorbed by Shields . | . . . . . . Core Remaining (%) 83 | 100 . . . 66 . Volleys Fired 56 | . 37 5 . 4 10 Largest 2 | . 2 1 . 2 2 Hottest 126 | . 80 30 . 64 126 Shots Fired 75 | . 44 5 . 6 20 Gun 39 | . 36 . . 2 1 Cannon 21 | . . . . 2 19 Launcher 15 | . 8 5 . 2 . Special . | . . . . . . Kinetic 22 | . . . . 4 18 Thermal 37 | . 36 . . . 1 Explosive 15 | . 8 5 . 2 . Electromagnetic 1 | . . . . . 1 Robot Hit Streak 10 | . 7 6 . 10 3 Robot Miss Streak 7 | . 2 . . 1 7 Penetration Max . | . . . . . . Secondary Targets . | . . . . . . Shots Hit Robots 50 | . 32 5 . 5 8 Core Hits 31 | . 11 7 . 5 8 Critical Hits . | . . . . . . Critical Kills . | . . . . . . Critical Parts Destroyed . | . . . . . . Melee Attacks . | . . . . . . Impact . | . . . . . . Slashing . | . . . . . . Piercing . | . . . . . . Sneak Attacks . | . . . . . . Combat Hostiles . | . . . . . . Follow-up Attacks . | . . . . . . Damage Inflicted 1268 | . 613 201 . 253 201 Guns 319 | . 292 . . 10 17 Cannons 236 | . . . . 52 184 Explosions 713 | . 321 201 . 191 . Melee . | . . . . . . Ramming . | . . . . . . Kinetic 246 | . . . . 62 184 Thermal 309 | . 292 . . . 17 Explosive 713 | . 321 201 . 191 . Electromagnetic . | . . . . . . Impact . | . . . . . . Slashing . | . . . . . . Piercing . | . . . . . . Highest Corruption 2 | . . 1 1 2 . Average Corruption 1 | . . 1 1 1 . Corruption Purged . | . . . . . . Effects 4 | . . 1 2 1 . Message Errors 3 | . . . 2 1 . Data Loss (minor) 1 | . . 1 . . . Overload Shots . | . . . . . . Overflow Damage 22 | . 17 . . . 5 Projectiles 5 | . . . . . 5 Explosions 17 | . 17 . . . . Melee . | . . . . . . Knockbacks 4 | . . . . . 4 Impact . | . . . . . . Kinetic 4 | . . . . . 4 Secondary . | . . . . . . Self-Inflicted Damage 228 | . 147 43 . 38 . Shots 10 | . 6 2 . 2 . Rammed . | . . . . . . Targets Rammed . | . . . . . . Kicked . | . . . . . . Crushed . | . . . . . . Highest Temperature 306 | . 306 . . 6 67 Average Temperature 135 | . 198 . . 3 23 Received Heat Transfer 345 | . 222 . . 6 117 Effects 1 | . 1 . . . . Energy Bleed 1 | . 1 . . . . Siege Activations . | . . . . . . Robots Corrupted . | . . . . . . Combat Hostiles . | . . . . . . Parts Fried . | . . . . . . Impact Corruptions . | . . . . . . Robots Melted . | . . . . . . Combat Hostiles . | . . . . . . Parts Melted . | . . . . . . Heat Transferred 712 | . 675 . . . 37 Parts Sabotaged . | . . . . . . Parts Stolen . | . . . . . . Parts Stripped . | . . . . . . Power Chain Reactions . | . . . . . . Missiles Intercepted . | . . . . . . Alert | -11 -10 -10 -10 -9 -8 ------- Run | Scr Mat Min Exi Min Mat Peak Influence 125 | . 125 113 . 90 70 Initial 48 | . . 48 . . 35 Average 51 | . 42 110 . 88 26 Maximum Alert Level . | . . . . . . Low Security (%) 100 | 100 100 100 . 100 100 Level 1 . | . . . . . . Level 2 . | . . . . . . Level 3 . | . . . . . . Level 4 . | . . . . . . Level 5 . | . . . . . . High Security . | . . . . . . Max Security . | . . . . . . Squads Dispatched 2 | . . . . . 2 Investigation . | . . . . . . Extermination . | . . . . . . Reinforcement 2 | . . . . . 2 Assault . | . . . . . . Garrison . | . . . . . . Intercept . | . . . . . . Construction Impeded 1 | . . . . . 1 Haulers Reinforced . | . . . . . . Stealth | -11 -10 -10 -10 -9 -8 --------- Run | Scr Mat Min Exi Min Mat Distress Signals . | . . . . . . Communications Jammed . | . . . . . . Distress Signals . | . . . . . . Times Spotted 24 | . 10 . . 2 12 Peak Tracking Total 9 | . 3 . . 2 9 Tactical Retreats 5 | . 4 . . . 1 Traps | -11 -10 -10 -10 -9 -8 ------- Run | Scr Mat Min Exi Min Mat Traps Triggered 1 | . . 1 . . . Indirectly . | . . . . . . Trap Hack Attempts . | . . . . . . Triggered . | . . . . . . Disarmed . | . . . . . . Reprogrammed . | . . . . . . Reused . | . . . . . . Traps Extracted . | . . . . . . Installed . | . . . . . . Triggered . | . . . . . . Exploded 2 | . . . 2 . . Machines | -11 -10 -10 -10 -9 -8 ---------- Run | Scr Mat Min Exi Min Mat Machines Disabled 5 | . 3 1 . 1 . Max in Single Turn 1 | . 1 1 . 1 . Machines Sabotaged . | . . . . . . Garrisons Compromised . | . . . . . . Overloaded Fab Kills . | . . . . . . Fab Network Shutdowns . | . . . . . . Hacking | -11 -10 -10 -10 -9 -8 --------- Run | Scr Mat Min Exi Min Mat Machines Accessed 6 | . 2 1 1 . 2 Terminals 4 | . 2 . . . 2 Fabricators . | . . . . . . Repair Stations . | . . . . . . Recycling Units . | . . . . . . Scanalyzers . | . . . . . . Garrison Access . | . . . . . . Total Hacks 16 | . 6 1 1 . 8 Successful 10 | . 4 1 1 . 4 Failed 6 | . 2 . . . 4 Catastrophic 1 | . . . . . 1 Database Lockouts . | . . . . . . Manual 10 | . 4 . 1 . 5 Terminals 14 | . 6 . . . 8 Fabricators . | . . . . . . Repair Stations . | . . . . . . Recycling Units . | . . . . . . Scanalyzers . | . . . . . . Garrison Access . | . . . . . . Terminal Hacks 6 | . 2 1 1 . 2 Prototype ID Bank 1 | . 1 . . . . Open Door 1 | . . 1 . . . Branch Access Points 1 | . 1 . . . . Alert Level 1 | . . . . . 1 Maintenance Status 1 | . . . . . 1 EX-Prototype ID Bank 1 | . . . 1 . . Fabricator Hacks . | . . . . . . Repair Station Hacks . | . . . . . . Recycling Unit Hacks . | . . . . . . Scanalyzer . | . . . . . . Garrison Access Hacks . | . . . . . . Unauthorized Hacks 4 | . 2 . . . 2 Terminals 4 | . 2 . . . 2 Botnet 4 | . 2 . . . 2 Fabricators . | . . . . . . Repair Stations . | . . . . . . Recycling Units . | . . . . . . Scanalyzers . | . . . . . . Garrison Access . | . . . . . . Data Cores Recovered . | . . . . . . Used . | . . . . . . Hacking Detections 4 | . 2 . . . 2 Full Trace Events . | . . . . . . Feedback Events . | . . . . . . Feedback Blocked . | . . . . . . Robot Schematics Acquired . | . . . . . . Robots Built . | . . . . . . Matter . | . . . . . . Time . | . . . . . . Total Robot Build Rating . | . . . . . . Part Schematics Acquired . | . . . . . . Parts Built . | . . . . . . Matter . | . . . . . . Time . | . . . . . . Total Part Build Rating . | . . . . . . Parts Repaired . | . . . . . . Time . | . . . . . . Parts Recycled . | . . . . . . Recycled Matter . | . . . . . . Retrieved Matter . | . . . . . . Retrieved Components . | . . . . . . Parts Scanalyzed . | . . . . . . Part Schematics Acquired . | . . . . . . Parts Damaged . | . . . . . . Bothacking | -11 -10 -10 -10 -9 -8 ------------ Run | Scr Mat Min Exi Min Mat Used RIF Installer . | . . . . . . Robots Hacked . | . . . . . . Non-combat . | . . . . . . Combat . | . . . . . . Robot Hacks Applied . | . . . . . . Relay Couplers Released . | . . . . . . Robots Rewired . | . . . . . . Allies Hacked . | . . . . . . Hacks Repelled . | . . . . . . Allies | -11 -10 -10 -10 -9 -8 -------- Run | Scr Mat Min Exi Min Mat Total Allies . | . . . . . . Largest Group . | . . . . . . Highest-Rated Group . | . . . . . . Highest-Rated Ally . | . . . . . . Total Orders . | . . . . . . Ally Attacks . | . . . . . . Total Damage . | . . . . . . Kills . | . . . . . . Allies Corrupted . | . . . . . . Allies Melted . | . . . . . . Intel | -11 -10 -10 -10 -9 -8 ------- Run | Scr Mat Min Exi Min Mat Robot Analysis Total . | . . . . . . Derelict Logs Recovered 2 | . . 1 . 1 . Drone Launches . | . . . . . . Drone Recoveries . | . . . . . . Exploration | -11 -10 -10 -10 -9 -8 ------------- Run | Scr Mat Min Exi Min Mat Turns Passed 2103 | 83 389 320 447 183 681 Spaces Moved 978 | 49 157 207 295 96 174 Core 38 | 19 18 1 . . . Treads 169 | 30 139 . . . . Legs 771 | . . 206 295 96 174 Wheels . | . . . . . . Hover . | . . . . . . Flight . | . . . . . . Fastest Speed 50 | 50 160 120 150 180 240 Average Speed 176 | 150 189 140 150 180 258 Slowest Speed 400 | 200 400 400 180 180 270 Overloaded Moves . | . . . . . . Propulsion Burnouts . | . . . . . . Robots Hopped . | . . . . . . Cave-ins Triggered . | . . . . . . Exploration Rate (%) 30 | 5 38 28 62 31 17 Regions Visited 5 Branch Regions 3 Pre-discovered Areas 1 | . . 1 . . . Known Exits Taken 1 | . 1 . . . . Unknown Exits Taken 4 | 1 . 1 1 1 . Scrap Searched 1 | . . 1 . . . Spaces Dug . | . . . . . . Terrain Destroyed 81 | . 33 29 . 15 4 Melee . | . . . . . . Projectile 4 | . . . . . 4 AOE 77 | . 33 29 . 15 . Terrain Rammed . | . . . . . . Walls Destroyed . | . . . . . . Machines Disabled . | . . . . . . Actions | -11 -10 -10 -10 -9 -8 --------- Run | Scr Mat Min Exi Min Mat Total 1280 | 56 208 230 301 100 385 Wait 199 | . 5 9 . . 185 Move 973 | 48 156 206 294 95 174 Hop . | . . . . . . Pick Up 16 | 2 2 6 1 . 5 Fast Attach 13 | 6 3 2 1 . 1 Attach 9 | . 1 2 1 . 5 Detach 6 | . 3 . 1 . 2 Swap 4 | . . . 1 1 2 Drop 4 | . 1 . 2 . 1 Fire 56 | . 37 5 . 4 10 Melee . | . . . . . . Ram . | . . . . . . Kick . | . . . . . . Crush . | . . . . . . Escape Stasis . | . . . . . . Rewire . | . . . . . . Trap . | . . . . . . Miscellaneous . | . . . . . . Route ------- -11/Scrapyard -10/Materials (discovered 2 exits: [*Mat] / *Min) -10/Mines (discovered 3 exits: [*Mat x2] / *Exi) -10/Exiles -9/Mines -8/Materials History --------- Turn | Location | Event 27 | -11/Scrapyard | Discovered new exit (range 15) 84 | -11/Scrapyard | Entered Materials 272 | -10/Materials | Discovered new exit (range 13) 277 | -10/Materials | Identified exit to Mines 324 | -10/Materials | Build established: Mutant 429 | -10/Materials | Lost 3 parts (2n1w) 473 | -10/Materials | Entered Mines 484 | -10/Mines | Discovered new exit (range 5) 486 | -10/Mines | Discovered new exit (range 11) 533 | -10/Mines | Met a Derelict who couldn't figure out how to use a Trap Extractor 697 | -10/Mines | Found a hidden stash of uninstalled traps 787 | -10/Mines | Deemed a non-threat by the Exiles lab entrance 787 | -10/Mines | Discovered new exit (range 5) 793 | -10/Mines | Entered Exiles 834 | -10/Exiles | Met 8R-AWN 856 | -10/Exiles | Met EX-HEX 897 | -10/Exiles | Met EX-BIN 913 | -10/Exiles | Aligned with FarCom system 915 | -10/Exiles | Given EX-Vault access code 952 | -10/Exiles | Opened EX-Vault 959 | -10/Exiles | Found Prototype Processor 959 | -10/Exiles | Identified Modified TNC 990 | -10/Exiles | Warned to stay clear of 0b10 Research branches 1015 | -10/Exiles | Exiles lab attacked by MAIN.C 1222 | -10/Exiles | Discovered new exit (range 12) 1240 | -10/Exiles | Left Exiles lab with Modified TNC 1240 | -10/Exiles | Entered Mines 1242 | -9/Mines | Met a Derelict bent on vengeance 1387 | -9/Mines | Discovered new exit (range 10) 1398 | -9/Mines | Learned Materials interactive machine intel 1423 | -9/Mines | Entered Materials 1423 | -8/Materials | Evolved 4 slots: Utility x4 1424 | -8/Materials | Loaded intel: 19 interactive machine locations 1732 | -8/Materials | Build established: Hauler-Skirmisher 2104 | -8/Materials | Self-destructed Last Messages --------------- 01844_ R-06 Scavenger collects Lgt. Deuterium Engine. 01848_ K-01 Serf collects debris. 01853_ Connecting with Terminal... >>Trojan(Botnet) Trojan loaded successfully. Testing... Terminal linked with 1 system. Awaiting botnet instructions. 01855_ K-01 Serf cleans the Material Processor. 01856_ K-01 Serf collects debris. 01859_ K-01 Serf cleans the Material Processor. 01864_ K-01 Serf collects debris. 01865_ K-01 Serf cleans the Material Processor. 02069_ Destroyed Flight Unit. 02069_ S-10 Pest knocked back. 02069_ S-10 Pest destroyed. 02080_ U-05 Engineer builds a Wall. 02091_ Lgt. Ion Engine destroyed. 02103_ G-47 Trooper destroyed. 02103_ Acquired Hvy. Particle Cannon. Map ----- +----------------------------------------------------+ | ?????????????????????????????????????????? | | ?????????????????????????????????????????? | | ?????????????????????????????????????????? | | ?????????????????????????????????????????? | | ?????????????????????????????????????????? | | ?????????????????????????????????????????? | | ?????????????????????????????????????????? | | ?????????????????????????????????????????? | | ?????????????????????????????????????????? | | ?????????????????????????????????????????? | | ?????????????????????????????????????????? | | ????????????????????? ?????????????????? | | ???????????????????? ????????????????? | | ???????????????????? ????????????????? | | ???????????Y???????? ???wg?gl??????T?? | | ???????????????????? #????????????????? | | ???????????????????? #????????????????? | | ????????????????????# #????????????????? | | ????????????????????# #????????????????? | | ???????????w????????# #????????????????? | | ????????????????????+ #????????????????? | | ?????????????????""?# #????????????????? | | ????????????????S""?# #????????????????? | | ????????????????""??# #????????????????? | | ?????????????######## #????????????????? | | ?????????????# @ # #????????????????# | | ????????????g# %/g t#????##+#########" | | ?????????????# "" # g #????# #" | | ??????????g??# "Y # ###### | | ?????????????# "" + gg %* g | | ???????????g?# ###########+#### | | ?????????????########??????# # | | ???????????????????????????# """ # | | ???????????????????????????# """ #" ^ | | ???????????Y???????????????# """ #T | | ???????????????????????????# #" | | ???????????????????????????# """ + | | ???????????????????????????# """ # | | ???????????????????????????# """ !# # | | ??????????"S???????????????# # ### | | ??????????"""??????????????# # # | | ???????????""??????????????# # + " | | ???????????????????????????######### # " | | ???????????????????????????????????#! # " | | ???????????????????????????????????# # | | ???????????????????????????????????# # [ | | ???????????????????????????????????# ### | | ???????????????????????????????????# #?? | | ???????????????????????????????????# #?? | | ???????????????????????????????????# #?? | +----------------------------------------------------+ Best States ------------- Heat Dissipation 31 Energy Generation 10 Energy Capacity 250 Matter Stores 252 Matter Capacity 450 Sight Range 16 Robot Scan Range 16 Terrain Scan Density 10 Armor Coverage 150 Evasion (%) 40 Recoil Reduction 2 Item Schematics ----------------- None Robot Schematics ------------------ None Fabricated ------------ Nothing Alien Tech Used ----------------- None Achievements -------------- None Challenges ------------ None Game ------ Seed InsulationGravityStorm Manual? 0 Play Time 00:15:33 Cumulative 25.2 hours Start 2021.04.04 @ 10:35:12 End 2021.04.04 @ 10:47:05 Sessions 1 Manual Loads 0 Difficulty Rogue Special Mode None Game No. 54 Rogue 51 Adventurer 0 Explorer 3 Win Type - Total 0 Types 0/0/0/0/0/0/0/0/0 Lore% 26 Gallery% 44 Achievement% 29 Wizard Run 0 Options --------- ASCII 0 Keyboard 1 Movement Numpad Keybinds 0 Fullscreen 1 Font 18/SmallcapsGlow Map View 76x50 Tactical HUD 1 Map Filters NONE Filters NONE Steam 1 RUN: 8e54a2e3-96e5-47e0-b9a7-ba7ee507393c